bitfinex-derivatives/quotes_ETHF0:USTF0_20250323
["timestamp","ask_amount","ask_price","bid_price","bid_amount"]
[1742760457005,12.16173,1998.1,1998.0,0.66630145]
[1742760458297,11.46863,1998.1,1998.0,0.66630145]
[1742760481421,8.26083,1998.1,1998.0,0.66630145]
[1742760481611,11.46863,1998.1,1998.0,0.66630145]
[1742760481813,8.26083,1998.1,1998.0,0.66630145]
[1742760482014,11.46863,1998.1,1998.0,0.66630145]
[1742760484819,11.46863,1998.1,1998.0,1.33190145]
[1742760486620,9.0698,1998.1,1998.0,1.33190145]
[1742760486811,5.862,1998.1,1998.0,4.83308145]
[1742760487011,4.7976,1998.1,1998.0,4.83308145]
[1742760487324,4.7976,1998.1,1998.0,6.14158145]
[1742760488116,0.00751145,1998.2,1998.0,5.14040145]
[1742760488321,0.00751145,1998.2,1998.1,5.47363]
[1742760488722,0.00751145,1998.2,1998.1,7.97363]
[1742760488923,0.00751145,1998.2,1998.1,5.47363]
[1742760492426,0.00751145,1998.2,1998.1,7.97363]
[1742760494622,0.00751145,1998.2,1998.1,5.47363]
[1742760497827,0.00751145,1998.2,1998.1,7.97363]
[1742760501626,4.20875,1998.5,1998.4,1.00098]
[1742760501830,4.20875,1998.5,1998.4,4.16398]
[1742760502140,1.00095,1998.5,1998.4,4.16398]
[1742760502737,1.0009,1998.6,1998.5,1.00093]
[1742760503029,1.00841001,1998.6,1998.5,2.37493]
[1742760504238,2.34561001,1998.6,1998.5,2.37493]
[1742760504933,2.34561001,1998.6,1998.5,1.374]
[1742760506139,2.34561001,1998.6,1998.5,2.37493]
[1742760506440,1.34471001,1998.6,1998.5,2.37493]
[1742760506838,0.00751001,1998.6,1998.5,4.87493]
[1742760510235,1.00839001,1998.6,1998.5,4.87493]
[1742760510440,2.38869001,1998.6,1998.5,4.87493]
[1742760514343,2.38869001,1998.6,1998.5,3.874]
[1742760514544,2.38869001,1998.6,1998.5,4.87493]
[1742760514841,1.00079,1998.8,1998.5,4.87493]
[1742760515034,3.2078,1998.9,1998.8,1.00078]
[1742760515240,3.2078,1998.9,1998.8,4.16278]
[1742760515547,1.3262,1999.2,1999.1,1.00063]
[1742760515548,2.32681,1999.2,1999.1,1.00063]
[1742760515749,2.32681,1999.2,1999.1,4.16263]
[1742760515940,1.3584,1999.2,1999.1,4.16263]
[1742760516145,1.3584,1999.2,1999.1,6.66263]
[1742760516540,1.3584,1999.2,1999.1,8.04533]
[1742760520650,1.3584,1999.2,1999.1,14.00333]
[1742760524961,1.3584,1999.2,1999.1,11.50333]
[1742760528954,1.3584,1999.2,1999.1,14.00333]
[1742760529739,1.3584,1999.2,1999.1,11.50333]
[1742760529944,1.3584,1999.2,1999.1,14.00333]
[1742760533953,1.3584,1999.2,1999.1,17.21113]
[1742760534751,0.6576,1999.4,1999.3,1.00053]
[1742760535047,2.0595,1999.4,1999.3,4.16153]
[1742760535456,2.0595,1999.4,1999.3,5.46503]
[1742760535956,3.05998,1999.4,1999.3,5.46503]
[1742760537355,6.26778,1999.4,1999.3,3.161]
[1742760539449,1.00053,1999.3,1999.2,1.00808145]
[1742760539651,2.38493,1999.3,1999.2,4.16908145]
[1742760539853,2.38493,1999.3,1999.2,5.45028145]
[1742760543358,1.3844,1999.3,1999.2,5.45028145]
[1742760544154,2.38493,1999.3,1999.2,5.45028145]
[1742760544555,2.38493,1999.3,1999.2,6.15855483]
[1742760544755,2.38493,1999.3,1999.2,6.80316094]
[1742760546159,2.38493,1999.3,1999.2,6.80342634]
[1742760547958,2.38493,1999.3,1999.2,6.80350216]
[1742760551956,2.38493,1999.3,1999.2,6.80360651]
[1742760552561,2.38493,1999.3,1999.2,6.80361619]
[1742760554151,2.38493,1999.3,1999.2,6.80362983]
[1742760557768,2.38493,1999.3,1999.2,0.65211756]
[1742760558070,2.38493,1999.3,1999.2,0.00751145]
[1742760560370,1.00063,1999.1,1999.0,3.16]
[1742760560571,1.00073,1998.9,1998.8,1.00074]
[1742760560877,1.00073,1998.9,1998.8,5.51474954]
[1742760561371,1.65073,1998.9,1998.8,5.51474954]
[1742760561775,1.65073,1998.9,1998.8,4.80671525]
[1742760562165,1.65073,1998.9,1998.8,3.80597525]
[1742760562366,1.65073,1998.9,1998.8,3.161]
[1742760562762,1.00078,1998.8,1998.7,2.36290145]
[1742760563075,2.36018,1998.8,1998.7,4.87695161]
[1742760563474,3.03688,1998.8,1998.7,5.52160084]
[1742760563974,3.03688,1998.8,1998.7,6.81820084]
[1742760564372,3.03688,1998.8,1998.7,6.11055068]
[1742760565174,3.03688,1998.8,1998.7,6.17322977]
[1742760565562,2.36018,1998.8,1998.7,6.17322977]
[1742760566175,2.36018,1998.8,1998.7,6.17311342]
[1742760566865,2.36018,1998.8,1998.7,5.46590145]
[1742760574178,1.00076,1998.9,1998.7,4.46511145]
[1742760574482,1.00076,1998.9,1998.8,2.32134]
[1742760575779,2.34566,1998.9,1998.8,2.32134]
[1742760575983,1.3449,1998.9,1998.8,2.32134]
[1742760576178,1.3449,1998.9,1998.8,2.96904]
[1742760577886,2.34563,1998.9,1998.8,2.96904]
[1742760578282,2.34563,1998.9,1998.8,1.9683]
[1742760578786,3.01853,1998.9,1998.8,1.9683]
[1742760579189,3.01853,1998.9,1998.8,2.96908]
[1742760580786,3.01853,1998.9,1998.8,2.32138]
[1742760580985,3.72673,1998.9,1998.8,2.32138]
[1742760582591,3.72673,1998.9,1998.8,1.3206]
[1742760584388,3.72673,1998.9,1998.8,2.32138]
[1742760589397,6.93453,1998.9,1998.8,2.32138]
[1742760589589,3.72673,1998.9,1998.8,2.32138]
[1742760589899,6.93453,1998.9,1998.8,2.32138]
[1742760590292,6.93453,1998.9,1998.8,3.02997821]
[1742760590991,6.93453,1998.9,1998.8,3.67489886]
[1742760592391,6.93453,1998.9,1998.8,2.96629633]
[1742760592590,6.93453,1998.9,1998.8,3.67494847]
[1742760592991,6.93453,1998.9,1998.8,2.67416847]
[1742760594192,6.93453,1998.9,1998.8,3.67494847]
[1742760594701,6.93453,1998.9,1998.8,3.67490927]
[1742760596205,3.72673,1998.9,1998.8,3.67490927]
[1742760596508,3.72673,1998.9,1998.8,2.67414151]
[1742760598195,3.72673,1998.9,1998.8,3.67492151]
[1742760598396,3.72673,1998.9,1998.8,2.96629633]
[1742760598699,3.72673,1998.9,1998.8,3.67492054]
[1742760599203,3.72673,1998.9,1998.8,1.35354054]
[1742760599399,3.72673,1998.9,1998.8,2.67434054]
[1742760599706,3.72673,1998.9,1998.8,3.67513133]
[1742760599898,3.72673,1998.9,1998.8,4.38353133]
[1742760600494,3.72673,1998.9,1998.8,4.38350167]
[1742760604204,3.72673,1998.9,1998.8,4.38350011]
[1742760604711,3.72673,1998.9,1998.8,4.3835036]
[1742760604901,3.05383,1998.9,1998.8,4.3835036]
[1742760605995,3.73953,1998.9,1998.8,4.3835036]
[1742760610207,1.3449,1998.9,1998.8,4.3835396]
[1742760610409,1.00068,1999.1,1999.0,1.00068]
[1742760610611,1.00068,1999.1,1999.0,4.16168]
[1742760611115,1.00068,1999.1,1999.0,4.80598]
[1742760611605,2.40528,1999.1,1999.0,6.15698]
[1742760613517,2.40528,1999.1,1999.0,5.1563]
[1742760614213,2.40528,1999.1,1999.0,6.15698]
[1742760615514,2.40528,1999.1,1999.0,5.1563]
[1742760616619,3.10498,1999.1,1999.0,5.1563]
[1742760617323,2.1043,1999.1,1998.8,1.00077]
[1742760617527,6.21528,1999.0,1998.9,3.16]
[1742760618615,6.21528,1999.0,1998.9,4.449]
[1742760618812,6.21528,1999.0,1998.9,5.44973]
[1742760619117,6.21528,1999.0,1998.9,4.449]
[1742760620027,6.21528,1999.0,1998.9,5.44973]
[1742760620215,4.559,1999.0,1998.9,5.44973]
[1742760620420,1.3512,1999.0,1998.9,6.85830736]
[1742760621223,1.3512,1999.0,1998.9,6.14983]
[1742760621619,1.3512,1999.0,1998.9,6.85831365]
[1742760622324,1.3512,1999.0,1998.9,6.14983]
[1742760622627,1.3512,1999.0,1998.9,6.85832416]
[1742760622926,1.3512,1999.0,1998.9,6.14983]
[1742760623126,1.3512,1999.0,1998.9,6.85831329]
[1742760624830,1.3512,1999.0,1998.9,6.85831627]
[1742760625126,1.3512,1999.0,1998.9,6.14983]
[1742760628232,2.35188,1999.0,1998.9,4.449]
[1742760628433,1.00076,1998.9,1998.7,1.00830145]
[1742760628635,3.02466,1998.9,1998.8,4.86924876]
[1742760628829,3.02466,1998.9,1998.8,6.92260262]
[1742760630329,3.02466,1998.9,1998.8,6.92260517]
[1742760630731,3.02466,1998.9,1998.8,3.76260517]
[1742760630932,1.3401,1998.9,1998.8,7.59800517]
[1742760631133,1.3401,1998.9,1998.8,8.28260517]
[1742760632136,2.34083,1998.9,1998.8,8.28260517]
[1742760632327,2.34083,1998.9,1998.8,7.57413386]
[1742760632528,2.34083,1998.9,1998.8,8.28261382]
[1742760632829,2.34083,1998.9,1998.8,8.28261694]
[1742760634428,2.99583,1998.9,1998.8,8.28264051]
[1742760636837,1.3401,1998.9,1998.8,8.28264051]
[1742760637440,2.34083,1998.9,1998.8,1.35326051]
[1742760637736,6.21663,1998.9,1998.8,5.51404051]
[1742760637937,6.21663,1998.9,1998.8,4.16078]
[1742760638441,1.00078,1998.8,1998.7,0.00751145]
[1742760638735,1.00103,1998.3,1998.2,5.958]
[1742760638942,2.50234,1998.5,1998.1,1.00108]
[1742760638943,1.00109,1998.2,1998.1,1.00108]
[1742760639130,2.95779,1998.2,1998.1,6.00450272]
[1742760639326,2.95779,1998.2,1998.1,0.70900874]
[1742760639529,1.00118,1998.0,1997.9,9.118]
[1742760639735,1.00128,1997.8,1997.7,1.00131]
[1742760639940,4.20908,1997.8,1997.7,4.51344402]
[1742760640139,4.20908,1997.8,1997.7,3.80490844]
[1742760640337,6.16578,1997.8,1997.7,3.80490844]
[1742760640743,6.16578,1997.8,1997.7,3.16]
[1742760641037,6.16578,1997.8,1997.7,4.16133]
[1742760641726,1.295,1997.8,1997.7,4.16133]
[1742760660754,2.29628,1997.8,1997.7,4.16133]
[1742760661147,2.97158,1997.8,1997.7,4.16133]
[1742760661447,1.9703,1997.8,1997.7,4.16133]
[1742760661654,2.97158,1997.8,1997.7,4.16133]
[1742760662053,1.9703,1997.8,1997.7,4.16133]
[1742760666448,1.295,1997.8,1997.7,4.16133]
[1742760667154,1.295,1997.8,1997.7,5.50503]
[1742760667656,1.295,1997.8,1997.7,6.20003]
[1742760668253,1.295,1997.8,1997.7,6.90880289]
[1742760669257,1.295,1997.8,1997.7,8.04399697]
[1742760670248,1.295,1997.8,1997.7,8.04462189]
[1742760670447,1.3631,1997.9,1997.7,8.04462189]
[1742760670448,1.3222,1998.2,1998.1,1.00113]
[1742760670754,1.3222,1998.2,1998.1,4.87087414]
[1742760671160,1.3222,1998.2,1998.1,5.57837414]
[1742760671360,1.3222,1998.2,1998.1,6.17373]
[1742760677258,3.21531145,1998.3,1998.2,1.00108]
[1742760677452,3.21531145,1998.3,1998.2,2.29858]
[1742760677660,3.21531145,1998.3,1998.2,3.00593716]
[1742760677857,0.00751145,1998.3,1998.2,3.00593716]
[1742760678564,0.00751145,1998.3,1998.2,2.29858]
[1742760679957,0.65961145,1998.3,1998.2,2.29858]
[1742760680168,2.05791145,1998.3,1998.2,2.29858]
[1742760680856,1.40581145,1998.3,1998.2,2.29858]
[1742760684169,0.00751145,1998.3,1998.2,3.00522442]
[1742760684354,0.00751145,1998.3,1998.2,5.50522442]
[1742760684555,1.00078,1998.8,1998.7,1.00083]
[1742760684755,4.20858,1998.8,1998.7,4.16183]
[1742760685865,5.52928,1998.8,1998.7,4.16183]
[1742760686865,4.5285,1998.8,1998.7,4.16183]
[1742760687069,5.52928,1998.8,1998.7,4.16183]
[1742760688670,4.5285,1998.8,1998.7,4.16183]
[1742760690170,5.52928,1998.8,1998.7,4.16183]
[1742760691373,4.5285,1998.8,1998.7,4.16183]
[1742760692572,5.52928,1998.8,1998.7,3.161]
[1742760694367,5.52928,1998.8,1998.7,4.16183]
[1742760696574,5.52928,1998.8,1998.7,3.161]
[1742760698074,5.52928,1998.8,1998.7,4.16183]
[1742760698570,5.52928,1998.8,1998.7,3.161]
[1742760701877,5.52928,1998.8,1998.7,4.16183]
[1742760702379,5.52928,1998.8,1998.7,3.161]
[1742760703069,1.00083,1998.7,1998.6,0.00751145]
[1742760703375,2.37863,1998.7,1998.6,3.16751145]
[1742760703977,2.37863,1998.7,1998.6,4.16839145]
[1742760704178,2.37863,1998.7,1998.6,3.16751145]
[1742760704677,2.37863,1998.7,1998.6,4.16839145]
[1742760705779,2.37863,1998.7,1998.6,3.16751145]
[1742760707171,2.37863,1998.7,1998.6,4.16839145]
[1742760711072,2.37863,1998.7,1998.6,4.83189145]
[1742760711278,2.37863,1998.7,1998.6,5.49879145]
[1742760714684,2.37863,1998.7,1998.6,4.16839145]
[1742760718687,2.37863,1998.7,1998.6,4.87681711]
[1742760719379,5.58643,1998.7,1998.6,4.87681711]
[1742760719788,5.58643,1998.7,1998.6,4.16839145]
[1742760720288,5.58643,1998.7,1998.6,4.87682675]
[1742760720590,5.58643,1998.7,1998.6,4.16839145]
[1742760721389,5.58643,1998.7,1998.6,4.87683513]
[1742760721592,5.58643,1998.7,1998.6,4.87684485]
[1742760721790,5.58643,1998.7,1998.6,4.16839145]
[1742760722083,3.2078,1998.7,1998.6,4.87682792]
[1742760722280,0.00751145,1998.9,1998.8,1.00078]
[1742760722480,0.00751145,1998.9,1998.8,4.86895507]
[1742760722687,0.00751145,1998.9,1998.8,6.00171214]
[1742760722887,0.00751145,1998.9,1998.8,7.39331214]
[1742760723085,4.20834,1999.3,1998.8,7.39331214]
[1742760723086,4.20834,1999.3,1999.2,1.00058]
[1742760723279,4.20834,1999.3,1999.2,4.16058]
[1742760724289,4.20834,1999.3,1999.2,5.57278]
[1742760725593,4.20834,1999.3,1999.2,4.5722]
[1742760726694,4.20834,1999.3,1999.2,5.57278]
[1742760727193,4.20834,1999.3,1999.2,4.5722]
[1742760732796,1.00058,1999.2,1999.1,3.159]
[1742760733000,3.70438,1999.2,1999.1,3.159]
[1742760733497,1.00063,1999.1,1999.0,1.3763]
[1742760733698,5.48973,1999.1,1999.0,4.5353]
[1742760744412,5.48973,1999.1,1999.0,3.159]
[1742760744716,1.00073,1998.9,1998.8,1.3219]
[1742760745014,1.00073,1998.9,1998.8,4.4809]
[1742760745216,4.20853,1998.9,1998.8,4.4809]
[1742760745518,5.53863,1998.9,1998.8,4.4809]
[1742760746308,5.53863,1998.9,1998.8,5.48168]
[1742760746517,5.53863,1998.9,1998.8,4.4809]
[1742760747615,5.53863,1998.9,1998.8,3.159]
[1742760748014,1.00078,1998.8,1998.7,3.70879]
[1742760748209,2.30418,1998.8,1998.7,6.57413434]
[1742760748415,2.30418,1998.8,1998.7,0.70713434]
[1742760748616,1.00083,1998.7,1998.6,6.96635145]
[1742760748916,2.34373,1998.7,1998.6,10.83282497]
[1742760749420,2.34373,1998.7,1998.6,4.16739145]
[1742760749621,2.34373,1998.7,1998.6,4.87514455]
[1742760749822,5.55153,1998.7,1998.6,4.87514455]
[1742760750220,5.55153,1998.7,1998.6,3.87426455]
[1742760750421,5.55153,1998.7,1998.6,4.87514455]
[1742760750626,5.55153,1998.7,1998.6,6.23834455]
[1742760751128,5.55153,1998.7,1998.6,5.53059145]
[1742760751828,5.55153,1998.7,1998.6,4.52971145]
[1742760752226,5.55153,1998.7,1998.6,5.53059145]
[1742760755030,5.55153,1998.7,1998.6,4.52971145]
[1742760757029,5.55153,1998.7,1998.6,5.53059145]
[1742760757426,5.55153,1998.7,1998.6,4.52971145]
[1742760759239,5.55153,1998.7,1998.6,5.53059145]
[1742760764542,2.34373,1998.7,1998.6,5.53059145]
[1742760764842,5.55153,1998.7,1998.6,5.53059145]
[1742760765939,5.55153,1998.7,1998.6,4.52971145]
[1742760766240,5.55153,1998.7,1998.6,3.16651145]
[1742760768538,5.55153,1998.7,1998.6,4.49691145]
[1742760773839,5.55153,1998.7,1998.6,5.20498398]
[1742760774045,5.55153,1998.7,1998.6,5.20498139]
[1742760774348,5.55153,1998.7,1998.6,5.20519163]
[1742760775538,5.55153,1998.7,1998.6,5.20525107]
[1742760777548,5.55153,1998.7,1998.6,5.2055544]
[1742760779550,5.55153,1998.7,1998.6,5.20580406]
[1742760780151,5.55153,1998.7,1998.6,5.20589934]
[1742760781254,5.55153,1998.7,1998.6,5.20592393]
[1742760781855,5.55153,1998.7,1998.6,5.20592023]
[1742760782751,5.55153,1998.7,1998.6,0.71652023]
[1742760782955,5.55153,1998.7,1998.3,5.958]
[1742760782956,1.00098,1998.4,1998.3,5.958]
[1742760783157,4.20878,1998.4,1998.3,3.86812442]
[1742760783554,5.55328,1998.4,1998.3,0.70912442]
[1742760783865,1.00103,1998.3,1998.2,3.159]
[1742760784048,2.50277,1998.2,1998.0,3.159]
[1742760784254,6.23103,1998.1,1998.0,3.159]
[1742760784548,6.23103,1998.1,1997.4,1.00143]
[1742760784549,2.50308,1997.9,1997.4,1.00143]
[1742760784748,2.50308,1997.9,1997.3,5.958]
[1742760784749,1.00148,1997.4,1997.3,5.958]
[1742760784950,1.00148,1997.4,1997.3,3.86747104]
[1742760785455,1.00148,1997.4,1997.3,3.159]
[1742760785952,1.00148,1997.4,1997.3,4.16053]
[1742760786158,1.00148,1997.4,1997.3,6.19492787]
[1742760786451,1.00148,1997.4,1997.3,5.48753]
[1742760787551,1.00148,1997.4,1997.3,4.486]
[1742760788258,1.00148,1997.4,1997.3,4.487]
[1742760789758,1.00148,1997.4,1997.3,5.48853]
[1742760791962,1.00148,1997.4,1997.3,4.487]
[1742760793050,1.00153,1997.3,1997.2,1.00909145]
[1742760793256,1.00153,1997.3,1997.2,5.49559145]
[1742760793257,2.38363,1997.3,1997.2,5.49559145]
[1742760809171,1.3821,1997.3,1997.2,5.49559145]
[1742760809361,3.2078,1997.5,1997.4,1.00148]
[1742760809561,4.5467,1997.7,1997.6,1.00138]
[1742760809767,4.5467,1997.7,1997.6,4.16238]
[1742760810165,4.5467,1997.7,1997.6,4.86258]
[1742760811173,5.54803,1997.7,1997.6,4.86258]
[1742760812873,2.34023,1997.7,1997.6,4.86258]
[1742760819378,1.3389,1997.7,1997.6,4.86258]
[1742760819677,2.34023,1997.7,1997.6,4.86258]
[1742760826780,2.34023,1997.7,1997.6,4.16238]
[1742760827083,1.00148,1997.4,1997.3,5.958]
[1742760827286,4.20928,1997.4,1997.3,5.958]
[1742760827981,4.89988,1997.4,1997.3,5.958]
[1742760830283,4.89988,1997.4,1997.3,6.95953]
[1742760831385,4.89988,1997.4,1997.3,1.00153]
[1742760833590,1.69208,1997.4,1997.3,1.00153]
[1742760834085,4.89988,1997.4,1997.3,1.00153]
[1742760838487,0.6906,1997.4,1997.3,2.28953]
[1742760838881,0.6906,1997.4,1997.3,2.93643]
[1742760839090,2.0722,1997.4,1997.3,2.93643]
[1742760840184,3.07368,1997.4,1997.3,2.93643]
[1742760847099,1.3816,1997.4,1997.3,2.93643]
[1742760847299,1.68684,1997.7,1997.6,1.00138]
[1742760847494,2.37864,1997.7,1997.6,4.16238]
[1742760847998,2.37864,1997.7,1997.6,4.84688]
[1742760848195,2.37864,1997.7,1997.6,6.22078]
[1742760848393,1.3773,1997.7,1997.6,6.22078]
[1742760848901,3.2078,1998.0,1997.9,1.00123]
[1742760849199,4.5583,1998.2,1998.1,1.00113]
[1742760849397,5.9288,1998.2,1998.1,1.00113]
[1742760849594,6.92988,1998.2,1998.1,1.00113]
[1742760849892,6.92988,1998.2,1998.1,1.278]
[1742760850097,1.00129,1997.8,1997.7,1.00127]
[1742760850298,1.00129,1997.8,1997.7,3.86851037]
[1742760850495,1.00129,1997.8,1997.7,3.161]
[1742760850695,3.72829,1997.8,1997.7,3.161]
[1742760851298,3.72829,1997.8,1997.7,4.16233]
[1742760851902,3.72829,1997.8,1997.7,4.8695236]
[1742760852303,3.72829,1997.8,1997.7,4.16233]
[1742760853004,3.72829,1997.8,1997.7,3.161]
[1742760854206,3.72829,1997.8,1997.7,4.16233]
[1742760856405,3.72829,1997.8,1997.7,3.161]
[1742760856903,3.72829,1997.8,1997.5,1.278]
[1742760856904,5.23021,1997.8,1997.5,3.16]
[1742760857103,4.20918,1997.6,1997.5,3.16]
[1742760857406,1.00143,1997.5,1997.4,5.53974]
[1742760857708,3.00253,1997.5,1997.4,5.53974]
[1742760858305,3.65203,1997.5,1997.4,5.53974]
[1742760861307,2.6506,1997.5,1997.4,5.53974]
[1742760864703,3.65203,1997.5,1997.4,5.53974]
[1742760867516,2.6506,1997.5,1997.4,5.53974]
[1742760867812,3.65203,1997.5,1997.4,5.53974]
[1742760870209,3.65203,1997.5,1997.4,3.16]
[1742760870416,3.65203,1997.5,1997.4,4.16148]
[1742760870811,3.2078,1997.8,1997.7,1.00133]
[1742760871112,0.7082,1998.0,1997.9,1.00123]
[1742760871414,1.00114,1998.1,1997.9,3.163]
[1742760871613,1.00114,1998.1,1998.0,0.6807]
[1742760872006,1.00114,1998.1,1998.0,1.68188]
[1742760872207,1.00114,1998.1,1998.0,3.08618]
[1742760872611,2.39032,1998.2,1998.1,1.00113]
[1742760872810,2.39032,1998.2,1998.1,2.40543]
[1742760873014,2.39032,1998.2,1998.1,6.21883]
[1742760884628,5.59812,1998.2,1998.1,6.21883]
[1742760886820,2.39032,1998.2,1998.1,6.21883]
[1742760887027,5.59812,1998.2,1998.1,6.21883]
[1742760888528,1.00851145,1998.4,1998.3,1.00103]
[1742760888727,1.00851145,1998.4,1998.3,4.16103]
[1742760890020,2.40281145,1998.4,1998.3,4.16103]
[1742760892232,5.61061145,1998.4,1998.3,4.16103]
[1742760892438,5.61061145,1998.4,1998.3,3.16]
[1742760894233,5.61061145,1998.4,1998.3,4.16103]
[1742760895629,5.61061145,1998.4,1998.3,3.16]
[1742760896033,5.61061145,1998.4,1998.3,4.5551]
[1742760896232,2.40281145,1998.4,1998.3,4.5551]
[1742760896438,5.61061145,1998.4,1998.3,4.5551]
[1742760898036,5.61061145,1998.4,1998.3,5.55613]
[1742760899634,5.61061145,1998.4,1998.3,4.5551]
[1742760900134,5.61061145,1998.4,1998.3,5.55613]
[1742760900535,2.40281145,1998.4,1998.3,5.55613]
[1742760900736,5.61061145,1998.4,1998.3,5.55613]
[1742760901135,5.61061145,1998.4,1998.3,4.5551]
[1742760901330,5.61061145,1998.4,1998.3,5.55613]
[1742760901732,5.61061145,1998.4,1998.3,4.5551]
[1742760902832,5.61061145,1998.4,1998.3,5.55613]
[1742760903237,1.00108,1998.2,1998.1,0.6514]
[1742760903435,1.00108,1998.2,1998.1,3.16]
[1742760903941,1.00108,1998.2,1998.1,4.16113]
[1742760903942,5.49068,1998.2,1998.1,4.16113]
[1742760904142,5.49068,1998.2,1998.1,5.55283]
[1742760907435,4.4896,1998.2,1998.1,5.55283]
[1742760907630,5.49068,1998.2,1998.1,5.55283]
[1742760910039,2.28288,1998.2,1998.1,5.55283]
[1742760911646,2.28288,1998.2,1998.1,6.26150281]
[1742760912036,2.28288,1998.2,1998.1,6.26150247]
[1742760914043,2.28288,1998.2,1998.1,6.26155948]
[1742760914544,2.28288,1998.2,1998.1,6.26159792]
[1742760916139,2.28288,1998.2,1998.1,6.26164315]
[1742760917144,2.28288,1998.2,1998.1,1.70994315]
[1742760917346,2.97858,1998.2,1998.1,4.86894315]
[1742760918242,2.97858,1998.2,1998.1,4.86906998]
[1742760920150,2.97858,1998.2,1998.1,4.16013]
[1742760920352,2.97858,1998.2,1998.1,4.86918276]
[1742760920751,2.97858,1998.2,1998.1,4.86920182]
[1742760926252,2.97858,1998.2,1998.1,4.86917433]
[1742760927754,2.97858,1998.2,1998.1,3.86804433]
[1742760928250,2.97858,1998.2,1998.1,3.86806252]
[1742760928758,2.97858,1998.2,1998.1,3.159]
[1742760928947,2.97858,1998.2,1998.1,3.86806864]
[1742760930359,2.97858,1998.2,1998.1,3.86808101]
[1742760930554,2.97858,1998.2,1998.1,4.86921101]
[1742760930857,2.97858,1998.2,1998.1,3.86808101]
[1742760931961,2.97858,1998.2,1998.1,5.22738101]
[1742760932461,2.97858,1998.2,1998.1,5.22739155]
[1742760932757,2.97858,1998.2,1998.1,6.22852155]
[1742760933252,1.2818,1998.2,1998.1,6.22852155]
[1742760933456,2.28288,1998.2,1998.1,6.22852155]
[1742760933860,1.2818,1998.2,1998.1,6.22852155]
[1742760934558,2.28288,1998.2,1998.1,6.22852631]
[1742760934958,2.28288,1998.2,1998.1,6.22852964]
[1742760936153,4.20883,1998.3,1998.2,1.00108]
[1742760936454,5.54153,1998.3,1998.2,4.44045281]
[1742760936762,2.33373,1998.3,1998.2,4.44045281]
[1742760938554,1.3327,1998.3,1998.2,4.44045281]
[1742760942660,1.3327,1998.3,1998.2,4.43986132]
[1742760943160,1.3327,1998.3,1998.2,4.43986065]
[1742760944964,2.33373,1998.3,1998.2,4.43986065]
[1742760945165,1.3327,1998.3,1998.2,4.43986065]
[1742760946562,1.3327,1998.3,1998.2,4.43957669]
[1742760948666,1.3327,1998.3,1998.2,4.43951454]
[1742760950555,2.33373,1998.3,1998.2,4.43951454]
[1742760950756,2.33373,1998.3,1998.2,4.43947946]
[1742760951256,1.3327,1998.3,1998.2,4.43947946]
[1742760952062,2.33373,1998.3,1998.2,4.43947946]
[1742760952666,1.3327,1998.3,1998.2,4.43946972]
[1742760954665,2.33373,1998.3,1998.2,4.43946972]
[1742760956471,1.3327,1998.3,1998.2,4.43946972]
[1742760956670,2.33373,1998.3,1998.2,4.43854998]
[1742760957171,1.3327,1998.3,1998.2,4.43857635]
[1742760957771,2.33373,1998.3,1998.2,4.43857635]
[1742760957973,1.3327,1998.3,1998.2,4.43857635]
[1742760958672,2.33373,1998.3,1998.2,4.43857635]
[1742760958862,5.54153,1998.3,1998.2,0.7071382]
[1742760959272,5.54153,1998.3,1998.2,3.8661382]
[1742760959471,5.54153,1998.3,1998.2,3.159]
[1742760959974,5.54153,1998.3,1998.2,4.16008]
[1742760962174,5.54153,1998.3,1998.2,4.86751478]
[1742760962573,5.54153,1998.3,1998.2,4.16008]
[1742760963176,5.54153,1998.3,1998.2,4.86752062]
[1742760964072,5.54153,1998.3,1998.2,4.16008]
[1742760965375,5.54153,1998.3,1998.2,4.86781154]
[1742760965676,5.54153,1998.3,1998.2,3.86673154]
[1742760965971,5.54153,1998.3,1998.2,3.159]
[1742760966877,5.54153,1998.3,1998.2,3.8662448]
[1742760967175,2.33373,1998.3,1998.2,4.8673248]
[1742760967376,5.54153,1998.3,1998.2,4.8673248]
[1742760967777,5.54153,1998.3,1998.2,4.16008]
[1742760967978,5.54153,1998.3,1998.2,4.86736061]
[1742760969680,5.54153,1998.3,1998.2,3.86628061]
[1742760970079,5.54153,1998.3,1998.2,3.86631847]
[1742760971081,5.54153,1998.3,1998.2,0.70731847]
[1742760972177,1.00108,1998.2,1998.1,3.159]
[1742760972477,2.41708,1998.2,1998.1,3.86625134]
[1742760973980,1.00118,1998.0,1997.9,1.0012]
[1742760974285,1.00118,1998.0,1997.9,3.8662914]
[1742760974578,1.00118,1998.0,1997.9,0.70717974]
[1742760974784,1.00123,1997.9,1997.8,3.159]
[1742760974981,4.20903,1997.9,1997.8,0.70726926]
[1742760975282,1.00133,1997.7,1997.6,3.159]
[1742760975473,4.20913,1997.7,1997.6,5.55518]
[1742760975786,2.39423,1997.7,1997.6,4.5538]
[1742760975986,2.39423,1997.7,1997.6,5.26085064]
[1742760976288,1.3929,1997.7,1997.6,6.26159196]
[1742760976481,4.20905,1997.9,1997.8,1.00128]
[1742760976785,4.20905,1997.9,1997.8,4.16028]
[1742760977284,4.20903,1997.9,1997.8,4.83978]
[1742760977585,3.2078,1997.9,1997.8,4.83978]
[1742760977778,3.2078,1997.9,1997.8,6.19658]
[1742760977979,4.5152,1997.9,1997.8,6.19658]
[1742760978179,1.3074,1997.9,1997.8,6.19658]
[1742760978382,2.30863,1997.9,1997.8,6.19658]
[1742760987896,1.3074,1997.9,1997.8,6.19658]
[1742760989193,2.30863,1997.9,1997.8,6.19658]
[1742760989994,1.3074,1997.9,1997.8,6.19658]
[1742760990195,2.30863,1997.9,1997.8,6.19658]
[1742760999505,1.0013,1997.8,1997.6,3.2078]